[Event "Turkey IS Bank Super League 2017"]
[Site "Darica-Kocaeli"]
[Date "2017.07.29"]
[Round "4"]
[White "Avramidou, Anastasia"]
[Black "Ozbay, Ece"]
[Result "1-0"]
[ECO "D17"]
[WhiteElo "2247"]
[BlackElo "1970"]
[Annotator "NA"]
[PlyCount "61"]
[EventType "team-tourn"]
[EventCountry "TUR"]
[SourceTitle "playchess.com"]
[Source "ChessBase"]
[SourceQuality "1"]
[TimeControl "40/5400+30:1800+30"]

1. d4 {[%emt 0:00:30]} d5 {[%emt 0:01:00]} 2. c4 {[%emt 0:00:30]} c6 {[%emt 0:00:30]} 3. Nf3 {[%emt 0:00:00]} Nf6 {[%emt 0:00:30]} 4. Nc3 {[%emt 0:00:00]} dxc4 {[%emt 0:00:30]} 5. a4 {[%emt 0:00:30]} Bf5 {[%emt 0:00:00] LiveBook: 10757 Games} 6. Nh4 {[%emt 0:00:00]} Bg6 {[%emt 0:01:00]} 7. Nxg6 {[%emt 0:00:00]} hxg6 {[%emt 0:00:00]} 8. e3 {[%emt 0:01:30]} e6 {[%emt 0:03:00]} 9. Bxc4 {[%emt 0:00:30]} Bd6 {[%emt 0:02:30]} 10. h3 {[%emt 0:00:00]} Nbd7 {[%emt 0:02:30]} 11. Qb3 {[%emt 0:14:00]} Qb6 {[%emt 0:10:30]} 12. Qc2 $11 {[%emt 0:01:30]} a5 {[%emt 0:12:30]} 13. Bd2 {[%emt 0:22:30]} Rc8 {[%emt 0:12:30]} 14. Rd1 {[%emt 0:07:30]} O-O {[%emt 0:09:30]} 15. O-O {[%emt 0:01:30]} Bb8 {[%emt 0:07:30]} 16. Bc1 {[%emt 0:03:30]} c5 {[%emt 0:05:30]} 17. d5 {[%emt 0:22:30]} Ne5 {[%emt 0:07:30]} 18. Bb5 {[%emt 0:00:30]} g5 {[%emt 0:11:21]} 19. Ne4 {[%emt 0:06:43]} Nxe4 {[%emt 0:05:20]} 20. Qxe4 {[%emt 0:00:06]} f5 {[%emt 0:01:30]} 21. Qc2 {[%emt 0:00:05]} exd5 {[%emt 0:00:07]} 22. Rxd5 {[%emt 0:06:59]} g4 {[%emt 0:00:47]} 23. Qd1 {[%emt 0:05:04]} gxh3 {[%emt 0:01:09]} 24. Rxe5 {[%emt 0:00:32]} hxg2 {[%emt 0:04:42]} 25. Re1 {[%emt 0:03:45]} Qh6 {[%emt 0:00:24]} 26. Kxg2 {[%emt 0:00:18]} Rf6 {[%emt 0:00:38]} 27. Qd5+ {[%emt 0:00:59]} Kf8 {[%emt 0:00:01]} 28. Rh1 {[%emt 0:00:12]} Rg6+ {[%emt 0:01:19]} 29. Kf1 {[%emt 0:00:30]} Qxh1+ {[%emt 0:00:30]} 30. Qxh1 {[%emt 0:00:00]} Bxe5 {[%emt 0:00:00]} 31. Qh8+ {[%emt 0:00:00]} 1-0

[Event "Turkey IS Bank Super League 2017"]
[Site "Darica-Kocaeli"]
[Date "2017.07.29"]
[Round "4"]
[White "Kinsiz, Onur"]
[Black "Ererdem, Gani Eren"]
[Result "1/2-1/2"]
[ECO "B40"]
[WhiteElo "2221"]
[BlackElo "2090"]
[Annotator "NA"]
[PlyCount "82"]
[EventType "team-tourn"]
[EventCountry "TUR"]
[SourceTitle "playchess.com"]
[Source "ChessBase"]
[SourceQuality "1"]
[TimeControl "40/5400+30:1800+30"]

1. e4 {[%emt 0:01:30]} c5 {[%emt 0:01:00]} 2. Nf3 {[%emt 0:00:00]} e6 {[%emt 0:00:30]} 3. g3 {[%emt 0:03:00]} Nc6 {[%emt 0:00:00]} 4. Bg2 {[%emt 0:00:00]} Nf6 {[%emt 0:00:00]} 5. Qe2 {[%emt 0:00:00]} d5 {[%emt 0:00:30]} 6. exd5 {[%emt 0:04:30]} Nxd5 {[%emt 0:00:00]} 7. O-O {[%emt 0:00:30]} Be7 {[%emt 0:00:00]} 8. Rd1 {[%emt 0:00:30]} e5 {[%emt 0:00:00]} 9. c3 {[%emt 0:17:30] LiveBook: 5 Games} Bg4 {[%emt 0:00:00]} 10. Na3 $15 {[%emt 0:01:30]} (10. h3 $11 Bh5 11. d4 exd4 12. g4) 10... O-O {[%emt 0:07:30]} 11. h3 {[%emt 0:05:30]} Bh5 {[%emt 0:00:30]} 12. d3 {[%emt 0:00:30]} f6 {[%emt 0:03:30]} 13. Nc2 {[%emt 0:11:30]} Re8 {[%emt 0:09:30]} 14. g4 {[%emt 0:18:30]} Bf7 {[%emt 0:00:30]} 15. Qf1 {[%emt 0:02:30]} Qd7 {[%emt 0:07:30]} 16. d4 {[%emt 0:08:30]} exd4 {[%emt 0:03:30]} 17. cxd4 {[%emt 0:01:30]} c4 {[%emt 0:00:30]} 18. Ne3 {[%emt 0:03:26]} b5 {[%emt 0:07:30]} 19. Ne1 {[%emt 0:00:37]} Rad8 {[%emt 0:07:30]} 20. Nxd5 {[%emt 0:04:34]} Bxd5 {[%emt 0:03:30]} 21. Be3 {[%emt 0:00:09]} Nb4 {[%emt 0:22:30]} 22. a4 {[%emt 0:04:31]} a6 {[%emt 0:02:30]} 23. axb5 {[%emt 0:00:25]} axb5 {[%emt 0:02:30]} 24. Qe2 {[%emt 0:03:29]} Bd6 {[%emt 0:02:21]} 25. Qd2 {[%emt 0:03:22]} Bxg2 {[%emt 0:05:16]} 26. Nxg2 {[%emt 0:00:30]} Nd5 {[%emt 0:00:05]} 27. Bf4 {[%emt 0:01:40]} Bb4 {[%emt 0:02:57]} 28. Qc2 {[%emt 0:00:37]} Re6 {[%emt 0:00:13]} 29. Bc1 {[%emt 0:01:50]} Rde8 {[%emt 0:01:28]} 30. Qf5 {[%emt 0:00:20]} R6e7 {[%emt 0:06:37]} 31. Qxd7 {[%emt 0:01:33]} Rxd7 {[%emt 0:00:30]} 32. Be3 {[%emt 0:00:00]} Bd6 {[%emt 0:02:52]} 33. Ra5 {[%emt 0:00:29]} Rb7 {[%emt 0:01:13]} 34. Rc1 {[%emt 0:00:18]} Bb4 {[%emt 0:00:49]} 35. Ra2 {[%emt 0:01:14]} Nxe3 {[%emt 0:00:12]} 36. fxe3 {[%emt 0:00:59]} Bd2 {[%emt 0:00:01]} 37. Rd1 {[%emt 0:00:33]} Bxe3+ {[%emt 0:00:05]} 38. Kf1 {[%emt 0:00:21]} Bh6 {[%emt 0:01:45]} 39. d5 {[%emt 0:00:29]} Kf7 {[%emt 0:00:53]} 40. Ra6 {[%emt 0:00:00]} Rd8 {[%emt 0:02:13]} 41. Rc6 {[%emt 0:04:34]} Ke7 {[%emt 0:26:04]} 1/2-1/2

[Event "Turkey IS Bank Super League 2017"]
[Site "Darica-Kocaeli"]
[Date "2017.07.29"]
[Round "4"]
[White "Bolat, Ahmet"]
[Black "Ozates, Tuna"]
[Result "0-1"]
[ECO "D01"]
[WhiteElo "2178"]
[BlackElo "2291"]
[Annotator "NA"]
[PlyCount "92"]
[EventType "team-tourn"]
[EventCountry "TUR"]
[SourceTitle "playchess.com"]
[Source "ChessBase"]
[SourceQuality "1"]
[TimeControl "40/5400+30:1800+30"]

1. d4 {[%emt 0:01:30]} d5 {[%emt 0:01:00]} 2. Nc3 {[%emt 0:00:30]} Nf6 {[%emt 0:00:30]} 3. Bg5 {[%emt 0:00:00]} c5 {[%emt 0:00:30]} 4. Bxf6 {[%emt 0:00:00]} gxf6 {[%emt 0:00:00]} 5. e3 {[%emt 0:00:00]} Nc6 {[%emt 0:00:00]} 6. Qh5 {[%emt 0:00:00]} e6 {[%emt 0:00:30]} 7. Nf3 {[%emt 0:00:00]} Bd7 {[%emt 0:02:30] LiveBook: 6 Games} 8. O-O-O {[%emt 0:04:00]} f5 {[%emt 0:11:30]} 9. dxc5 {[%emt 0:08:30]} ({Much weaker is} 9. Ng5 Qf6 $15) 9... Bxc5 {[%emt 0:05:30]} 10. Qh6 {[%emt 0:01:30]} (10. g4 $14 fxg4 11. Qxg4) 10... Qe7 {[%emt 0:01:30]} 11. Nb5 {[%emt 0:06:30]} O-O-O $15 {[%emt 0:01:30]} 12. Qf4 {[%emt 0:02:30]} e5 {[%emt 0:05:30]} 13. Qh6 {[%emt 0:07:30]} Be6 {[%emt 0:02:30]} 14. Ng5 {[%emt 0:05:30]} a6 {[%emt 0:04:30]} 15. Nc3 {[%emt 0:05:30]} Kb8 {[%emt 0:13:30]} 16. Nxe6 {[%emt 0:16:30]} fxe6 {[%emt 0:00:30]} 17. Ne2 {[%emt 0:16:30]} Rc8 {[%emt 0:03:30]} 18. Kb1 {[%emt 0:00:30]} Na5 {[%emt 0:03:30]} 19. Nc1 {[%emt 0:00:30]} Rc6 {[%emt 0:02:30]} 20. Nb3 {[%emt 0:01:30]} Bb6 {[%emt 0:02:30]} 21. c3 {[%emt 0:08:43]} Rhc8 {[%emt 0:02:30]} 22. g4 {[%emt 0:00:37]} Nc4 {[%emt 0:09:30]} 23. gxf5 {[%emt 0:00:59]} exf5 {[%emt 0:09:41]} 24. Qh5 {[%emt 0:00:01]} Qd7 {[%emt 0:05:31]} 25. Bh3 {[%emt 0:05:00]} Rf8 {[%emt 0:00:46]} 26. e4 {[%emt 0:00:11]} d4 {[%emt 0:00:19]} 27. Bxf5 {[%emt 0:01:27]} Qe7 {[%emt 0:00:48]} 28. cxd4 {[%emt 0:00:12]} exd4 {[%emt 0:00:00]} 29. Qxh7 {[%emt 0:04:40]} Qxh7 {[%emt 0:01:16]} 30. Bxh7 {[%emt 0:00:30]} Rxf2 {[%emt 0:00:00]} 31. Nxd4 {[%emt 0:02:10]} Rxb2+ {[%emt 0:00:24]} 32. Ka1 {[%emt 0:00:07]} Rh6 {[%emt 0:02:48]} 33. Bg8 {[%emt 0:00:06]} Rb4 {[%emt 0:01:14]} 34. Nf5 {[%emt 0:01:37]} Bc7 {[%emt 0:00:46]} 35. Rd5 {[%emt 0:01:16]} Rhb6 {[%emt 0:00:18]} 36. Nd4 {[%emt 0:00:44]} Ne3 {[%emt 0:00:30]} 37. Nb3 {[%emt 0:00:03]} Nxd5 {[%emt 0:00:24]} 38. Bxd5 {[%emt 0:00:30]} Be5+ {[%emt 0:00:30]} 39. Kb1 {[%emt 0:00:00]} a5 {[%emt 0:00:00]} 40. Kc2 {[%emt 0:00:00]} Rh6 {[%emt 0:02:45]} 41. h4 {[%emt 0:12:37]} Rg6 {[%emt 0:02:30]} 42. a3 {[%emt 0:11:26]} Rg2+ {[%emt 0:01:30]} 43. Kd1 {[%emt 0:00:30]} Rb5 {[%emt 0:00:30]} 44. a4 {[%emt 0:02:26]} Rb4 {[%emt 0:01:30]} 45. Rf1 {[%emt 0:03:56]} Rxa4 {[%emt 0:03:30]} 46. Rf5 {[%emt 0:00:12]} Raa2 {[%emt 0:00:30]} 0-1

[Event "Turkey IS Bank Super League 2017"]
[Site "Darica-Kocaeli"]
[Date "2017.07.29"]
[Round "4"]
[White "Dolgun, Can"]
[Black "Tuna, Alp"]
[Result "1-0"]
[ECO "B18"]
[WhiteElo "2104"]
[BlackElo "2280"]
[Annotator "NA"]
[PlyCount "41"]
[EventType "team-tourn"]
[EventCountry "TUR"]
[SourceTitle "playchess.com"]
[Source "ChessBase"]
[SourceQuality "1"]
[TimeControl "40/5400+30:1800+30"]

1. e4 {[%emt 0:00:30]} c6 {[%emt 0:01:00]} 2. d4 {[%emt 0:00:30]} d5 {[%emt 0:00:30]} 3. Nc3 {[%emt 0:00:30]} dxe4 {[%emt 0:00:30]} 4. Nxe4 {[%emt 0:00:00]} Bf5 {[%emt 0:01:30]} 5. Ng3 {[%emt 0:00:00]} Bg6 {[%emt 0:00:30]} 6. h4 {[%emt 0:00:30]} h6 {[%emt 0:00:00]} 7. N1e2 {[%emt 0:00:00]} e6 {[%emt 0:00:00]} 8. Nf4 {[%emt 0:01:00]} Bh7 {[%emt 0:00:30] LiveBook: 166 Games} 9. Bc4 {[%emt 0:00:00]} Nf6 {[%emt 0:03:30]} 10. Qe2 {[%emt 0:00:00]} Bd6 {[%emt 0:08:30]} 11. Ngh5 {[%emt 0:00:30]} O-O $11 {[%emt 0:08:30]} 12. g4 {[%emt 0:00:30]} Nxh5 {[%emt 0:39:30]} 13. Nxh5 {[%emt 0:00:00]} e5 {[%emt 0:05:30]} 14. Bxh6 {[%emt 0:01:00]} gxh6 {[%emt 0:19:26]} 15. Qd2 {[%emt 0:00:00]} Bb4 {[%emt 0:01:16]} 16. Qxb4 {[%emt 0:00:00]} Qxd4 {[%emt 0:01:20]} 17. Nf6+ {[%emt 0:00:30]} Kg7 {[%emt 0:00:06]} 18. c3 {[%emt 0:05:30]} Na6 {[%emt 0:02:01]} 19. Qxf8+ {[%emt 0:00:30]} Rxf8 {[%emt 0:00:47]} 20. Nh5+ {[%emt 0:00:30]} Kg8 {[%emt 0:00:30]} 21. cxd4 {[%emt 0:00:00]} 1-0

[Event "Turkey IS Bank Super League 2017"]
[Site "Darica-Kocaeli"]
[Date "2017.07.29"]
[Round "4"]
[White "Ozenir, Ekin Baris"]
[Black "Unat, Can Haktan"]
[Result "1-0"]
[ECO "A45"]
[WhiteElo "2098"]
[BlackElo "2006"]
[Annotator "NA"]
[PlyCount "69"]
[EventType "team-tourn"]
[EventCountry "TUR"]
[SourceTitle "playchess.com"]
[Source "ChessBase"]
[SourceQuality "1"]
[TimeControl "40/5400+30:1800+30"]

1. d4 {[%emt 0:00:30]} Nf6 {[%emt 0:01:00]} 2. Bg5 {[%emt 0:00:30]} e6 {[%emt 0:02:30]} 3. e4 {[%emt 0:00:30]} h6 {[%emt 0:02:30]} 4. Bxf6 {[%emt 0:00:30]} Qxf6 {[%emt 0:00:30]} 5. Qd2 {[%emt 0:00:30]} d6 {[%emt 0:12:30]} 6. Nc3 {[%emt 0:00:30]} Nd7 {[%emt 0:01:30]} 7. O-O-O {[%emt 0:03:30]} Qd8 {[%emt 0:08:30]} 8. f4 {[%emt 0:02:30]} Be7 {[%emt 0:00:30]} 9. Nf3 {[%emt 0:02:30]} O-O $16 {[%emt 0:00:30]} (9... a6 $11) 10. Bd3 {[%emt 0:03:30]} a6 {[%emt 0:01:30]} 11. e5 {[%emt 0:14:30]} dxe5 {[%emt 0:14:30]} 12. dxe5 {[%emt 0:06:30]} Bb4 {[%emt 0:06:30]} 13. a3 {[%emt 0:05:30]} Ba5 {[%emt 0:00:30]} 14. f5 {[%emt 0:05:30]} Nc5 {[%emt 0:16:30]} 15. b4 {[%emt 0:04:30]} Qxd3 {[%emt 0:00:30]} 16. Qxd3 {[%emt 0:00:30]} Nxd3+ {[%emt 0:00:30]} 17. Rxd3 {[%emt 0:00:30]} Bb6 {[%emt 0:00:00]} 18. f6 {[%emt 0:00:30]} a5 {[%emt 0:09:20]} 19. b5 {[%emt 0:00:30]} a4 {[%emt 0:01:47]} 20. Nd2 {[%emt 0:07:30]} Bc5 {[%emt 0:01:08]} 21. Nce4 {[%emt 0:01:30]} Ba7 {[%emt 0:04:34]} 22. fxg7 {[%emt 0:04:30]} Kxg7 {[%emt 0:00:46]} 23. Rf1 {[%emt 0:00:30]} c6 {[%emt 0:05:56]} 24. Rg3+ {[%emt 0:00:30]} Kh8 {[%emt 0:01:11]} 25. Rf6 {[%emt 0:01:30]} Kh7 {[%emt 0:00:30]} 26. Rf4 {[%emt 0:00:00]} f5 {[%emt 0:01:41]} 27. Nf6+ {[%emt 0:00:00]} Rxf6 {[%emt 0:01:38]} 28. exf6 {[%emt 0:00:30]} h5 {[%emt 0:00:00]} 29. f7 {[%emt 0:00:30]} Bc5 {[%emt 0:02:02]} 30. Rg8 {[%emt 0:02:30]} Bxa3+ {[%emt 0:01:57]} 31. Kb1 {[%emt 0:00:00]} cxb5 {[%emt 0:00:16]} 32. Rh4 {[%emt 0:01:00]} Kh6 {[%emt 0:00:10]} 33. g4 {[%emt 0:00:30]} fxg4 {[%emt 0:00:09]} 34. Ne4 {[%emt 0:00:30]} Bd7 {[%emt 0:01:34]} 35. Nf6 {[%emt 0:00:30]} 1-0

[Event "Turkey IS Bank Super League 2017"]
[Site "Darica-Kocaeli"]
[Date "2017.07.29"]
[Round "4"]
[White "Arda, Cagil Irmak"]
[Black "Kargaci, Humeyra"]
[Result "1/2-1/2"]
[ECO "D87"]
[WhiteElo "2080"]
[BlackElo "1737"]
[Annotator "NA"]
[PlyCount "114"]
[EventType "team-tourn"]
[EventCountry "TUR"]
[SourceTitle "playchess.com"]
[Source "ChessBase"]
[SourceQuality "1"]
[TimeControl "40/5400+30:1800+30"]

1. d4 {[%emt 0:01:30]} Nf6 {[%emt 0:01:00]} 2. c4 {[%emt 0:00:00]} g6 {[%emt 0:00:30]} 3. Nc3 {[%emt 0:00:00]} d5 {[%emt 0:00:30]} 4. cxd5 {[%emt 0:00:30]} Nxd5 {[%emt 0:00:30]} 5. e4 {[%emt 0:00:00]} Nxc3 {[%emt 0:00:00]} 6. bxc3 {[%emt 0:00:00]} Bg7 {[%emt 0:00:00]} 7. Bc4 {[%emt 0:00:00]} c5 {[%emt 0:00:00]} 8. Ne2 {[%emt 0:00:00]} Nc6 {[%emt 0:00:00]} 9. Be3 {[%emt 0:00:00]} O-O {[%emt 0:00:00]} 10. h4 {[%emt 0:00:00]} h5 {[%emt 0:08:00]} 11. Rc1 {[%emt 0:01:30]} Na5 {[%emt 0:06:30]} 12. Bd3 {[%emt 0:01:30]} c4 {[%emt 0:01:30]} 13. Bb1 {[%emt 0:01:30]} Qc7 {[%emt 0:00:30]} 14. e5 {[%emt 0:14:30]} Rd8 {[%emt 0:05:30]} 15. Nf4 {[%emt 0:23:30]} Bg4 {[%emt 0:19:30]} 16. Qa4 {[%emt 0:03:30]} e6 {[%emt 0:15:30]} 17. f3 {[%emt 0:05:30]} Bf5 {[%emt 0:00:30]} 18. Bxf5 {[%emt 0:01:30]} exf5 {[%emt 0:00:00]} 19. Kf2 {[%emt 0:00:00]} Rab8 {[%emt 0:03:00]} 20. Rb1 {[%emt 0:06:00]} a6 {[%emt 0:04:30]} 21. e6 {[%emt 0:04:30]} b5 {[%emt 0:03:30]} 22. exf7+ {[%emt 0:03:30]} Kxf7 {[%emt 0:00:00]} 23. Qc2 {[%emt 0:00:30]} Qd6 {[%emt 0:01:00]} 24. Nh3 {[%emt 0:00:30]} Qc6 {[%emt 0:03:30]} 25. Bf4 {[%emt 0:01:30]} Rbc8 {[%emt 0:03:30]} 26. Ng5+ {[%emt 0:00:30]} Kg8 {[%emt 0:00:30]} 27. Rhe1 {[%emt 0:00:30]} Re8 {[%emt 0:00:30]} 28. Qd2 {[%emt 0:00:30]} Qd5 {[%emt 0:00:30]} 29. Rxe8+ {[%emt 0:03:30]} Rxe8 {[%emt 0:00:30]} 30. Re1 {[%emt 0:00:30]} Rxe1 {[%emt 0:05:21]} 31. Qxe1 {[%emt 0:00:30]} Qd7 {[%emt 0:00:00]} 32. Qe6+ {[%emt 0:07:30]} Qxe6 {[%emt 0:00:09]} 33. Nxe6 {[%emt 0:00:30]} Bf6 {[%emt 0:03:23]} 34. Bg5 {[%emt 0:03:14]} Bxg5 {[%emt 0:01:09]} 35. hxg5 {[%emt 0:00:46]} Nc6 {[%emt 0:01:59]} 36. d5 {[%emt 0:03:45]} Kf7 {[%emt 0:01:42]} 37. Nc5 {[%emt 0:01:26]} Ne5 {[%emt 0:06:20]} 38. Ke3 {[%emt 0:03:58]} Ke7 {[%emt 0:01:20]} 39. Kd4 {[%emt 0:07:54]} Nd7 {[%emt 0:01:36]} 40. Nxd7 {[%emt 0:02:04]} Kxd7 {[%emt 0:30:30]} 41. Kc5 {[%emt 0:00:00]} f4 {[%emt 0:00:00]} 42. a3 {[%emt 0:01:23]} Kc7 {[%emt 0:00:00]} 43. Kd4 {[%emt 0:02:30]} Kd6 {[%emt 0:00:00]} 44. Ke4 {[%emt 0:00:00]} a5 {[%emt 0:00:00]} 45. Kd4 {[%emt 0:00:00]} h4 {[%emt 0:00:00]} 46. Ke4 {[%emt 0:00:30]} Kc5 {[%emt 0:00:00]} 47. Ke5 {[%emt 0:01:30]} b4 {[%emt 0:00:00]} 48. axb4+ {[%emt 0:00:30]} axb4 {[%emt 0:00:00]} 49. cxb4+ {[%emt 0:00:30]} Kxb4 {[%emt 0:00:00]} 50. d6 {[%emt 0:00:30]} c3 {[%emt 0:00:00]} 51. d7 {[%emt 0:00:30]} c2 {[%emt 0:00:00]} 52. d8=Q {[%emt 0:00:00]} c1=Q {[%emt 0:00:00]} 53. Qd4+ {[%emt 0:02:00]} Kb5 {[%emt 0:00:00]} 54. Qxf4 {[%emt 0:01:30]} Qc7+ {[%emt 0:00:00]} 55. Ke4 {[%emt 0:00:30]} Qc4+ {[%emt 0:00:00]} 56. Ke3 {[%emt 0:01:30]} Qc1+ {[%emt 0:00:00]} 57. Ke4 {[%emt 0:00:30]} Qc4+ {[%emt 0:00:00]} 1/2-1/2

[Event "Turkey IS Bank Super League 2017"]
[Site "Darica-Kocaeli"]
[Date "2017.07.29"]
[Round "4"]
[White "Tarlabasi, Emirhan"]
[Black "Akdogan, Alperen"]
[Result "1/2-1/2"]
[ECO "E12"]
[WhiteElo "2046"]
[BlackElo "2151"]
[Annotator "NA"]
[PlyCount "96"]
[EventType "team-tourn"]
[EventCountry "TUR"]
[SourceTitle "playchess.com"]
[Source "ChessBase"]
[SourceQuality "1"]
[TimeControl "40/5400+30:1800+30"]

1. d4 {[%emt 0:00:30]} Nf6 {[%emt 0:02:00]} 2. c4 {[%emt 0:00:30]} e6 {[%emt 0:00:00]} 3. Nf3 {[%emt 0:00:30]} b6 {[%emt 0:00:00]} 4. a3 {[%emt 0:00:30]} c5 {[%emt 0:01:30]} 5. e3 {[%emt 0:09:30]} g6 {[%emt 0:09:30]} 6. Nc3 {[%emt 0:08:30]} Bb7 {[%emt 0:02:30]} 7. Be2 {[%emt 0:01:30]} Bg7 {[%emt 0:07:30]} 8. O-O {[%emt 0:04:30]} O-O $11 {[%emt 0:02:30]} 9. b3 {[%emt 0:10:30]} d5 {[%emt 0:02:30]} 10. Bb2 {[%emt 0:00:30]} Nc6 {[%emt 0:06:30]} 11. cxd5 {[%emt 0:10:30]} Nxd5 {[%emt 0:03:30]} 12. Nxd5 {[%emt 0:14:30]} Qxd5 {[%emt 0:00:30]} 13. Bc4 {[%emt 0:02:30]} Qd7 {[%emt 0:02:30]} 14. Qe2 {[%emt 0:19:17]} cxd4 {[%emt 0:06:30]} 15. exd4 {[%emt 0:02:03]} Nxd4 {[%emt 0:03:30]} 16. Bxd4 {[%emt 0:01:47]} Bxf3 {[%emt 0:03:30]} 17. Qxf3 {[%emt 0:00:06]} Bxd4 {[%emt 0:01:30]} 18. Rad1 {[%emt 0:02:16]} Rfd8 {[%emt 0:08:30]} 19. a4 {[%emt 0:03:40]} Rac8 {[%emt 0:01:30]} 20. Rc1 {[%emt 0:01:05]} Rc5 {[%emt 0:04:30]} 21. Bb5 {[%emt 0:03:10]} Qc7 {[%emt 0:02:30]} 22. Rxc5 {[%emt 0:01:14]} Qxc5 {[%emt 0:00:00]} 23. Bc4 {[%emt 0:00:31]} Rd7 {[%emt 0:06:00]} 24. g3 {[%emt 0:00:41]} Kg7 {[%emt 0:00:30]} 25. Kg2 {[%emt 0:00:42]} e5 {[%emt 0:03:30]} 26. Rd1 {[%emt 0:01:09]} Qe7 {[%emt 0:00:37]} 27. Qe4 {[%emt 0:00:41]} f5 {[%emt 0:07:06]} 28. Qc6 {[%emt 0:00:31]} Rd6 {[%emt 0:01:56]} 29. Qa8 {[%emt 0:00:43]} Rd8 {[%emt 0:00:15]} 30. Qc6 {[%emt 0:00:00]} Qd7 {[%emt 0:10:45]} 31. Qxd7+ {[%emt 0:00:27]} Rxd7 {[%emt 0:00:30]} 32. Kf1 {[%emt 0:00:19]} Kf6 {[%emt 0:00:08]} 33. Ke2 {[%emt 0:00:04]} g5 {[%emt 0:00:17]} 34. f3 {[%emt 0:00:35]} h5 {[%emt 0:00:19]} 35. Rc1 {[%emt 0:01:06]} g4 {[%emt 0:01:46]} 36. Bb5 {[%emt 0:00:31]} gxf3+ {[%emt 0:01:12]} 37. Kxf3 {[%emt 0:00:09]} e4+ {[%emt 0:00:35]} 38. Ke2 {[%emt 0:00:13]} Rh7 {[%emt 0:00:33]} 39. Rc6+ {[%emt 0:01:07]} Ke5 {[%emt 0:00:26]} 40. Bc4 {[%emt 0:01:09]} Bc5 {[%emt 0:01:05]} 41. Re6+ {[%emt 0:02:44]} Kd4 {[%emt 0:00:00]} 42. Rf6 {[%emt 0:01:30]} h4 {[%emt 0:10:00]} 43. Rxf5 {[%emt 0:03:30]} hxg3 {[%emt 0:00:30]} 44. hxg3 {[%emt 0:08:29]} Rg7 {[%emt 0:01:30]} 45. Rd5+ {[%emt 0:00:47]} Kc3 {[%emt 0:00:00]} 46. Re5 {[%emt 0:01:45]} Kd4 {[%emt 0:04:50]} 47. Rd5+ {[%emt 0:00:06]} Kc3 {[%emt 0:00:30]} 48. Re5 {[%emt 0:00:06]} Rxg3 {[%emt 0:06:15]} 1/2-1/2

[Event "Turkey IS Bank Super League 2017"]
[Site "Darica-Kocaeli"]
[Date "2017.07.29"]
[Round "4"]
[White "Celik, Eda"]
[Black "Ayan, Bengu Sena"]
[Result "1/2-1/2"]
[ECO "C04"]
[WhiteElo "1939"]
[BlackElo "1862"]
[Annotator "NA"]
[PlyCount "83"]
[EventType "team-tourn"]
[EventCountry "TUR"]
[SourceTitle "playchess.com"]
[Source "ChessBase"]
[SourceQuality "1"]
[TimeControl "40/5400+30:1800+30"]

1. e4 {[%emt 0:00:30]} e6 {[%emt 0:01:00]} 2. d4 {[%emt 0:00:30]} d5 {[%emt 0:00:30]} 3. Nd2 {[%emt 0:00:30]} Nc6 {[%emt 0:00:30]} 4. Ngf3 {[%emt 0:00:00]} Nf6 {[%emt 0:00:00]} 5. e5 {[%emt 0:04:00]} Nd7 {[%emt 0:00:00]} 6. Nb3 {[%emt 0:01:30]} f6 {[%emt 0:06:30]} 7. Bb5 {[%emt 0:00:30]} Be7 {[%emt 0:07:30]} 8. O-O {[%emt 0:11:30]} O-O {[%emt 0:08:30]} 9. Bxc6 {[%emt 0:05:30]} bxc6 {[%emt 0:00:30]} 10. exf6 {[%emt 0:00:30]} Bxf6 {[%emt 0:09:30]} 11. Qe2 {[%emt 0:13:30]} Qe7 {[%emt 0:04:30]} 12. Re1 {[%emt 0:01:30]} Re8 {[%emt 0:07:30]} 13. Bf4 {[%emt 0:03:30]} c5 {[%emt 0:09:30]} 14. Bxc7 {[%emt 0:16:30]} cxd4 {[%emt 0:00:30]} 15. Nfxd4 {[%emt 0:02:30]} Nb6 {[%emt 0:04:30]} 16. Bg3 {[%emt 0:04:30]} Bd7 {[%emt 0:05:30]} 17. f4 {[%emt 0:02:30]} a5 {[%emt 0:03:30]} 18. c3 {[%emt 0:02:30]} Nc4 {[%emt 0:02:30]} 19. Nf3 {[%emt 0:10:45]} Rab8 {[%emt 0:07:30]} 20. Rab1 {[%emt 0:00:36]} Rbc8 {[%emt 0:02:31]} 21. Nbd4 {[%emt 0:00:57]} Nd6 {[%emt 0:01:21]} 22. Ne5 {[%emt 0:02:59]} Ne4 {[%emt 0:01:49]} 23. Ng4 {[%emt 0:09:10]} Bxd4+ {[%emt 0:04:00]} 24. cxd4 {[%emt 0:00:30]} Qb4 {[%emt 0:00:00]} 25. Red1 {[%emt 0:02:12]} Ba4 {[%emt 0:02:42]} 26. Rdc1 {[%emt 0:02:37]} Qxd4+ {[%emt 0:01:16]} 27. Bf2 {[%emt 0:00:56]} Nxf2 {[%emt 0:01:13]} 28. Qxf2 {[%emt 0:00:10]} Qxf2+ {[%emt 0:00:48]} 29. Kxf2 {[%emt 0:00:02]} Bc2 {[%emt 0:00:29]} 30. Ra1 {[%emt 0:00:17]} d4 {[%emt 0:00:13]} 31. Ke1 {[%emt 0:01:36]} Bf5 {[%emt 0:03:29]} 32. Ne5 {[%emt 0:00:28]} d3 {[%emt 0:01:24]} 33. Kd2 {[%emt 0:00:39]} Rc2+ {[%emt 0:01:47]} 34. Rxc2 {[%emt 0:00:33]} dxc2 {[%emt 0:00:05]} 35. Rc1 {[%emt 0:00:25]} Rd8+ {[%emt 0:03:05]} 36. Ke1 {[%emt 0:00:08]} Rb8 {[%emt 0:00:14]} 37. b3 {[%emt 0:00:25]} a4 {[%emt 0:01:03]} 38. Nc6 {[%emt 0:00:51]} Rb6 {[%emt 0:01:18]} 39. Ne7+ {[%emt 0:00:43]} Kf7 {[%emt 0:00:30]} 40. Nxf5 {[%emt 0:00:30]} exf5 {[%emt 0:00:13]} 41. bxa4 {[%emt 0:06:01]} Rb2 {[%emt 0:00:30]} 42. Kd2 {[%emt 0:02:30]} 1/2-1/2